Cogmind - Beta 14 @@@ ROGUE MODE // 2024.12.05 @ 12:14:19 Player: boba1221 Result: Destroyed by S-10 Pest with Light Assault Rifle Performance ------------- Evolutions (1) 500 Regions Visited (2) 400 Robots Destroyed (24) 120 Value Destroyed (439) 439 Prototype IDs (3) 60 Alien Tech Used (0) 0 Bonus (0) 0 TOTAL SCORE: 1519 Bonus ------- None Cogmind --------- Core Integrity 0/400 Matter 226/300 Energy 100/100 System Corruption 0% Temperature Cool (0) Movement Treading (160) Location -9/Materials Parts ------- > --- POWER (1) -------- (None) > --- PROPULSION (2) --- Light Treads > --- UTILITY (4) ------ Visual Processing Unit Signal Interpreter Power Shielding > --- WEAPON (2) ------- Heavy Assault Rifle > --- INVENTORY (5) ---- Hammer Peak State ------------ > --- POWER ------------ Ion Engine > --- PROPULSION ------- Aluminum Leg Aluminum Leg > --- UTILITY ---------- Heat Sink Huge Storage Unit Visual Processing Unit Signal Interpreter > --- WEAPON ----------- Improved EM Shotgun Light Assault Rifle > --- INVENTORY -------- Light Assault Rifle Hammer [Rating: 12] Favorites ----------- Power Ion Engine Engine Ion Engine Propulsion Aluminum Leg Treads Light Treads Leg Aluminum Leg Utility Signal Interpreter Device Heat Sink Storage Huge Storage Unit Processor Signal Interpreter Protection Power Shielding Weapon Light Assault Rifle Energy Gun Improved EM Shotgun Ballistic Gun Light Assault Rifle Impact Weapon Hammer Build | -11 -10 -9 ------- Run | Yrd Mat Mat Slots Evolved 2 | . . 2 Power . | . . . Propulsion . | . . . Utility 2 | . . 2 Weapon . | . . . Parts Attached 29 | 5 14 10 Power 3 | 1 1 1 Engine 3 | 1 1 1 Core . | . . . Reactor . | . . . Propulsion 6 | 2 3 1 Treads 1 | . . 1 Leg 5 | 2 3 . Wheel . | . . . Hover . | . . . Flight . | . . . Utility 9 | . 5 4 Device 3 | . 3 . Storage 2 | . 1 1 Processor 2 | . 1 1 Hackware . | . . . Protection 2 | . . 2 Artifact . | . . . Weapon 11 | 2 5 4 Energy Gun 3 | . 3 . Energy Cannon . | . . . Ballistic Gun 7 | 2 1 4 Ballistic Cannon . | . . . Launcher . | . . . Special Weapon . | . . . Impact Weapon 1 | . 1 . Slashing Weapon . | . . . Piercing Weapon . | . . . Special Melee Weapon . | . . . Unidentified Prototypes 1 | . 1 . Parts Lost 10 | . 1 9 Power 1 | . . 1 Propulsion 3 | . 1 2 Utility 2 | . . 2 Weapon 4 | . . 4 Highest Loss Streak 5 | . 1 5 To Critical Strikes . | . . . Average Slot Usage (%) 93 | . 96 89 Engine 11 | . 14 7 Leg 22 | . 27 16 Device 11 | . 12 10 Storage 5 | . . 10 Processor 16 | . 12 21 Energy Gun 4 | . 8 . Ballistic Gun 15 | . 11 20 Impact Weapon 3 | . 7 . Peak Build Rating 12 | 5 10 12 Average Rating 8 | 3 7 10 On Entrance 4 | . 5 9 Naked Turns . | . . . Heaviest Build 90 | 5 89 90 Greatest Support 20 | 20 20 20 Greatest Overweight (x) 28 | . 4 28 Average Overweight (x) 1 | . . 5 Largest Inventory Capacity 25 | 5 25 25 Average Capacity 14 | 5 5 24 Most Carried 10 | 3 5 10 Average Carried 5 | . 4 6 Final Capacity 5 | 5 5 5 Final Carried 3 | 3 3 1 Class Distribution -------------------- 60% | Mutant 39% | Scavenger-Mutant Dominant Class ---------------- Mutant | -10/Materials Scavenger-Mutant | -9/Materials Resources | -11 -10 -9 ----------- Run | Yrd Mat Mat Matter Collected 514 | 226 180 108 Remotely . | . . . Salvage Created 586 | 37 381 168 Parts 46 | 3 19 24 Haulers Intercepted . | . . . Recyclers Shooed . | . . . Parts Field Recycled . | . . . Retrieved Matter . | . . . Parts Self-Destructed . | . . . Prevented . | . . . Kills | -11 -10 -9 ------- Run | Yrd Mat Mat Combat Hostiles Destroyed 21 | 1 11 9 Melee 1 | . 1 . Guns 17 | 1 7 9 AOE 1 | . 1 . Classes Destroyed 5 | 1 3 1 Builder 1 | . 1 . Watcher 2 | . 1 1 Swarmer 14 | . 6 8 Grunt 6 | 1 5 . Sentry 1 | . . 1 Best Kill Streak 6 | 1 4 6 Combat Bots Only 6 | 1 3 6 Max Kills in Single Turn 2 | 1 2 2 Gunslinging . | . . . Exploded 1 | . 1 . Melee 1 | . 1 . Uniques/NPCs Destroyed . | . . . Combat | -11 -10 -9 -------- Run | Yrd Mat Mat Hostile Shots Fired 261 | 3 68 190 Missed 65 | 2 24 39 Damage Taken 1742 | 11 508 1223 Core 501 | . 101 400 Absorbed by Shields . | . . . Core Remaining (%) 79 | 100 59 . Volleys Fired 54 | 2 20 32 Largest 2 | 2 2 2 Hottest 110 | 40 110 46 Shots Fired 99 | 4 34 61 Gun 99 | 4 34 61 Cannon . | . . . Launcher . | . . . Special . | . . . Kinetic 82 | 4 17 61 Thermal 4 | . 4 . Explosive . | . . . Electromagnetic 13 | . 13 . Robot Hit Streak 7 | 2 6 7 Robot Miss Streak 6 | 2 4 6 Penetration Max . | . . . Secondary Targets 2 | . . 2 Max Gunslinging Chain 1 | . . 1 Shots Hit Robots 56 | 2 31 23 Core Hits 31 | 2 15 14 Critical Kills . | . . . Critical Parts Destroyed 1 | . 1 . Critical Strikes 1 | . 1 . Smash 1 | . 1 . Melee Attacks 28 | . 28 . Impact 28 | . 28 . Slashing . | . . . Piercing . | . . . Sneak Attacks 2 | . 2 . Combat Hostiles . | . . . Follow-up Attacks . | . . . Damage Inflicted 944 | 15 672 257 Guns 569 | 15 297 257 Cannons . | . . . Explosions 23 | . 23 . Melee 352 | . 352 . Ramming . | . . . Kinetic 331 | 15 59 257 Thermal 73 | . 73 . Explosive . | . . . Electromagnetic 188 | . 188 . Impact 352 | . 352 . Slashing . | . . . Piercing . | . . . Highest Corruption . | . . . Average Corruption . | . . . Corruption Purged . | . . . Corruption Blocked . | . . . Overload Shots . | . . . Overflow Damage 52 | . 52 . Projectiles . | . . . Explosions . | . . . Melee 52 | . 52 . Knockbacks 2 | . 2 . Impact 2 | . 2 . Kinetic . | . . . Secondary . | . . . Self-Inflicted Damage 22 | . 22 . Shots 1 | . 1 . Rammed . | . . . Targets Rammed . | . . . Kicked . | . . . Crushed . | . . . Highest Temperature 44 | 6 44 . Average Temperature 13 | 6 13 . Received Heat Transfer 231 | 6 225 . Siege Activations . | . . . Robots Corrupted 2 | . 2 . Combat Hostiles 2 | . 2 . Parts Fried . | . . . Impact Corruptions 3 | . 3 . Robots Melted . | . . . Combat Hostiles . | . . . Parts Melted . | . . . Heat Transferred 111 | . 111 . Parts Sabotaged . | . . . Parts Stolen . | . . . Parts Stripped . | . . . Power Chain Reactions 1 | . 1 . Alert | -11 -10 -9 ------- Run | Yrd Mat Mat Peak Influence 236 | 20 182 236 Initial 35 | . 13 35 Average 82 | 4 86 85 Maximum Alert Level 1 | . . 1 Low Security (%) 89 | 100 100 78 Level 1 10 | . . 21 Level 2 . | . . . Level 3 . | . . . Level 4 . | . . . Level 5 . | . . . High Security . | . . . Max Security . | . . . Squads Dispatched 2 | . 2 . Investigation 2 | . 2 . Extermination . | . . . Reinforcement . | . . . Assault . | . . . Garrison . | . . . Intercept . | . . . Searches Triggered . | . . . Construction Impeded . | . . . Haulers Reinforced . | . . . Active Scanning Responses . | . . . Cargo Convoy Interrupts . | . . . Stealth | -11 -10 -9 --------- Run | Yrd Mat Mat Distress Signals 1 | . . 1 Communications Jammed . | . . . Distress Signals . | . . . Times Spotted 47 | 1 22 24 Peak Tracking Total 9 | 1 4 9 Tactical Retreats 5 | . 1 4 Traps | -11 -10 -9 ------- Run | Yrd Mat Mat Traps Triggered 1 | . 1 . Indirectly . | . . . Trap Hack Attempts . | . . . Triggered . | . . . Disarmed . | . . . Reprogrammed . | . . . Reused . | . . . Traps Extracted . | . . . Installed . | . . . Triggered . | . . . Machines | -11 -10 -9 ---------- Run | Yrd Mat Mat Machines Disabled . | . . . Max in Single Turn . | . . . Machines Repaired . | . . . Machines Dismantled . | . . . Machines Sabotaged . | . . . Overloaded Fab Kills . | . . . Hacking | -11 -10 -9 --------- Run | Yrd Mat Mat Machines Accessed 5 | . 5 . Terminals 5 | . 5 . Fabricators . | . . . Repair Stations . | . . . Recycling Units . | . . . Scanalyzers . | . . . Garrison Access . | . . . Total Hacks 16 | . 16 . Successful 14 | . 14 . Failed 2 | . 2 . Catastrophic 1 | . 1 . Database Lockouts . | . . . Manual 2 | . 2 . Terminals 16 | . 16 . Fabricators . | . . . Repair Stations . | . . . Recycling Units . | . . . Scanalyzers . | . . . Garrison Access . | . . . Terminal Hacks 14 | . 14 . Record 7 | . 7 . Prototype ID Bank 1 | . 1 . Alert Level 1 | . 1 . Dispatch Records 1 | . 1 . Recall Investigation 1 | . 1 . Hauler Manifests 1 | . 1 . Zone Layout 2 | . 2 . Fabricator Hacks . | . . . Repair Station Hacks . | . . . Recycling Unit Hacks . | . . . Scanalyzer . | . . . Garrison Access Hacks . | . . . Unauthorized Hacks . | . . . Terminals . | . . . Fabricators . | . . . Repair Stations . | . . . Recycling Units . | . . . Scanalyzers . | . . . Garrison Access . | . . . Data Cores Recovered . | . . . Used . | . . . Hacking Detections 4 | . 4 . Full Trace Events 3 | . 3 . Feedback Events . | . . . Feedback Blocked . | . . . Robot Schematics Acquired . | . . . Robots Built . | . . . Authchips . | . . . Time . | . . . Total Robot Build Rating . | . . . Part Schematics Acquired . | . . . Parts Built . | . . . Authchips . | . . . Time . | . . . Total Part Build Rating . | . . . Parts Repaired . | . . . Time . | . . . Parts Recycled . | . . . Recycled Matter . | . . . Retrieved Matter . | . . . Retrieved Components . | . . . Parts Scanalyzed . | . . . Part Schematics Acquired . | . . . Parts Damaged . | . . . Bothacking | -11 -10 -9 ------------ Run | Yrd Mat Mat Used RIF Installer . | . . . Robots Hacked . | . . . Non-combat . | . . . Combat . | . . . Robot Hacks Applied . | . . . Relay Couplers Released . | . . . Fabnet Peak Effective % . | . . . Robots Rewired . | . . . Allies Hacked . | . . . Hacks Repelled . | . . . Allies | -11 -10 -9 -------- Run | Yrd Mat Mat Total Allies . | . . . Largest Group . | . . . Highest-Rated Group . | . . . Highest-Rated Ally . | . . . Total Orders . | . . . Ally Attacks . | . . . Total Damage . | . . . Kills . | . . . Allies Corrupted . | . . . Allies Melted . | . . . Intel | -11 -10 -9 ------- Run | Yrd Mat Mat Robot Analysis Total . | . . . Derelict Logs Recovered . | . . . Drone Launches . | . . . Drone Recoveries . | . . . Exploration | -11 -10 -9 ------------- Run | Yrd Mat Mat Turns Passed 2628 | 102 1279 1247 Spaces Moved 1254 | 94 903 257 Core 55 | 37 . 18 Treads 15 | . . 15 Legs 1184 | 57 903 224 Wheels . | . . . Hover . | . . . Flight . | . . . Fastest Speed 50 | 50 120 120 Average Speed 187 | 92 124 442 Slowest Speed 1450 | 120 400 1450 Overloaded Moves . | . . . Propulsion Burnouts . | . . . Robots Hopped . | . . . Cave-ins Triggered . | . . . Exploration Rate (%) 33 | 7 68 25 Regions Visited 2 Branch Regions . Pre-discovered Areas . | . . . Known Exits Taken 1 | . 1 . Unknown Exits Taken 1 | 1 . . Scrap Searched . | . . . Spaces Dug 11 | . 11 . Terrain Destroyed 14 | . 14 . Melee 11 | . 11 . Projectile . | . . . AOE 3 | . 3 . Terrain Rammed . | . . . Walls Destroyed . | . . . Machines Disabled . | . . . Actions | -11 -10 -9 --------- Run | Yrd Mat Mat Total 1405 | 103 986 316 Wait . | . . . Move 1252 | 93 902 257 Hop . | . . . Pick Up 18 | 3 6 9 Fast Attach 18 | 5 8 5 Attach 11 | . 6 5 Detach 8 | . 7 1 Swap . | . . . Drop 16 | . 9 7 Fire 54 | 2 20 32 Melee 28 | . 28 . Ram . | . . . Kick . | . . . Crush . | . . . Escape Stasis . | . . . Rewire . | . . . Trap . | . . . Miscellaneous . | . . . Route ------- -11/Scrapyard -10/Materials (discovered 3 exits: *Mat x2 / *Min) -9/Materials History --------- Turn | Location | Event 2 | -11/Scrapyard | Met Revision 17 73 | -11/Scrapyard | Discovered new exit (range 8) 103 | -11/Scrapyard | Entered Materials 312 | -10/Materials | Build established: Mutant 444 | -10/Materials | Discovered new exit (range 7) 460 | -10/Materials | Identified exit to Mines 862 | -10/Materials | Discovered new exit (range 10) 1141 | -10/Materials | Discovered new exit (range 13) 1167 | -10/Materials | Identified exit to Materials 1382 | -10/Materials | Entered another Materials area 1382 | -9/Materials | Evolved 2 slots: Utility x2 1561 | -9/Materials | Build established: Scavenger-Mutant 2330 | -9/Materials | Lost 5 parts (1p2n2w) 2583 | -9/Materials | Core integrity fell below 50% 2590 | -9/Materials | Build established: Mutant 2600 | -9/Materials | Core integrity fell below 20% 2629 | -9/Materials | Destroyed by S-10 Pest with Light Assault Rifle Last Messages --------------- Dropped Huge Storage Unit. Dropped Power Shielding. Dropped Lgt. Armor Plating. K-01 Serf collects debris. Dropped Heat Sink. Dropped Imp. Light Cannon. R-06 Scavenger collects Terrain Scan Processor. Acquired Lgt. Armor Plating. K-01 Serf collects debris. S-10 Pest destroyed. K-01 Serf collects debris. Acquired Power Shielding. K-01 Serf collects debris. Acquired Hvy. Assault Rifle. Lgt. Armor Plating destroyed. K-01 Serf collects debris. S-10 Pest destroyed. K-01 Serf collects debris. R-06 Scavenger collects Heat Sink. [Achievement: First Step to Greatness] Map ----- +----------------------------------------------------+ | ?????????????????????????????????????????????????? | | ?????????????????????????????????????????????????? | | ????????????????????????????? #????????????????? | | ????????????????????????????? #????????????????? | | ????????????????????###?????? #????????????????? | | ???????????????????? #?????? #????????????????? | | ????????????????????# #?????? #??"?????????????? | | ????????????????????# #?????? #??"?????????????? | | ????????????????? ??#%#?????? #? ??????????????? | | ????????????????? ??#+######? #? ??????????????? | | ????????????????? ??# ## # ???????????????? | | ???????????????? ??# ## # ???????????????? | | ???????????????? ??# ## +????????????????? | | ???????????????? ??# ## #????????????????? | | ???????????????#+#??# = ## #????????????????? | | ???????????????# #??# % ## ########### ???? | | ???????????????# #####+##+## [!! = ???? | | ???????????????# % r [! % ??? | | ???????????????# ######## ! ] !! * ??? | | ??????????######/###????# !! =%* ??? | | ??????????# #????# s %! ######??????? | | ??????????# """ #????#s## ! #???????????? | | ??????????# """ #????# ## """ #???????????? | | ??? ??????# """ #????# ## """"" #???????????? | | ???# ?????# "" #???##/## """"" #???????????? | | ???# ???# """ """#???#!@ # """"" #???????????? | | ???# ???# """ R"#???# # """ ??#???????????? | | ???# ???# """ """#???# [ # ???????????????? | | ??## #??# #???# # ????????????????? | | ??# #######/#+##???#! !# ???????????????? | | " # #????# =# ???????????????? | | " / #????#] # ]! ???????????????? | | ??# #????##### !! ??????????????? | | ??# ##+#+#####????# ! ???????????????? | | ??## # #????? ???????????????? | | ???# """ # """#????? ????????????????? | | ???# """"" # """#????? ????????????????? | | ???# """"" # """#????? ??????????????????? | | ???# """"" # #??????????????????????????? | | #### """ # """#??????????????????????????? | | # # """#??????????????????????????? | | "" # # """#??????????????????????????? | | T" # # #??????????????????????????? | | # #################?????????????????????????? | | "" # ## # =#?????????????????????????? | | "" # ## # #?????????????????????????? | | "" + ## # """ #?????????????????????????? | | # ## # """ #?????????????????????????? | | +### #######+### """ #?????????????????????????? | | # """ #?????????????????????????? | +----------------------------------------------------+ Best States ------------- Heat Dissipation 38 Energy Generation 10 Energy Capacity 250 Matter Stores 300 Matter Capacity 300 Sight Range 18 Terrain Scan Density 10 ECM Strength 1 Armor Coverage 150 Power Shielding 33 Evasion (%) 55 Recoil Reduction 1 Item Schematics ----------------- None Robot Schematics ------------------ None Fabricated ------------ Nothing Alien Tech Used ----------------- None Achievements -------------- First Step to Greatness One Hack Too Far Part-time Excavator Power Corrupts Risk Taker Shopping List Challenges ------------ None Game ------ Seed InsulatedStormImmobilizer Manual? 0 Play Time 00:33:08 Cumulative 0.5 hours Start 2024.12.05 @ 11:35:24 End 2024.12.05 @ 12:14:19 Sessions 1 Manual Loads 0 Difficulty Rogue Special Mode None Game No. 1 Rogue 1 Adventurer 0 Explorer 0 Win Type - Total 0 Types 0/0/0/0/0/0/0/0/0 Lore% 0 Gallery% 2 Achievement% 2 Wizard Run 0 Options --------- Layout 1 ASCII 0 Keyboard 1 Movement Arrows Keybinds 0 Fullscreen 1 Font 24/Smallcaps Map View 50x35 Zoom Use 0% Tactical HUD 0 Map Filters NONE Filters NONE Steam 0 RUN: 577af131-6fc5-465f-b9a3-f1697313dad3